Cogmind - Beta 9.2 @@@ ROGUE MODE // 2019.11.26 @ 12:42:20 Player: KernelPanic Result: Self-destructed Performance ------------- Evolutions (3) 1500 Regions Visited (9) 1800 Robots Destroyed (24) 120 Value Destroyed (810) 810 Prototype IDs (3) 60 Alien Tech Used (0) 0 Bonus (1000) 1000 TOTAL SCORE: 5290 Bonus ------- Entered Garrisons 200 Used RIF Installer 500 Aligned with FarCom 300 Cogmind --------- Core Integrity 700/700 Matter 300/300 Energy 248/250 System Corruption 0% Temperature Cool (2) Movement Hovering (76) Location -7/Factory Parts ------- > --- POWER (1) -------- Ion Engine > --- PROPULSION (5) --- Backup Propulsion III Backup Propulsion III > --- UTILITY (5) ------ (None) > --- WEAPON (2) ------- Backup Laser III Backup Laser III > --- INVENTORY (4) ---- Improved Light Cannon Flak Cannon Improved Datajack Peak State ------------ > --- POWER ------------ Improved Ion Engine > --- PROPULSION ------- Compact Wheel Compact Wheel Compact Wheel > --- UTILITY ---------- Small Storage Unit Improved Propulsion Shielding Hardened Heavy Armor Plating > --- WEAPON ----------- Latent Energy Streamer Axe > --- INVENTORY -------- Ion Engine Ion Engine Improved Light Cannon Flak Cannon Proton Missile Launcher Improved Datajack [Rating: 31] Favorites ----------- Power Light Nuclear Core Engine Ion Engine Power Core Light Nuclear Core Propulsion Compact Wheel Leg Aluminum Leg Wheel Compact Wheel Hover Unit Backup Propulsion III Utility Small Storage Unit Storage Small Storage Unit Processor Modified TNC Protection Improved Propulsion Shielding Weapon Flak Cannon Energy Gun Particle Gun Energy Cannon Latent Energy Streamer Ballistic Gun Light Assault Rifle Ballistic Cannon Flak Cannon Slashing Weapon Axe Build | -11 -10 -10 -9 -9 -9 -8 -8 -8 -7 ------- Run | Scr Mat Min Mat Min Exi Min Mat Gar Fac Slots Evolved 6 | . . . 2 . . . 2 . 2 Power . | . . . . . . . . . . Propulsion 3 | . . . 1 . . . 1 . 1 Utility 3 | . . . 1 . . . 1 . 1 Weapon . | . . . . . . . . . . Parts Attached 20 | . 2 5 1 2 3 1 3 2 1 Power 5 | . . 1 . 1 . . 1 1 1 Engine 4 | . . . . 1 . . 1 1 1 Core 1 | . . 1 . . . . . . . Reactor . | . . . . . . . . . . Propulsion 4 | . 2 . 1 . . . 1 . . Treads . | . . . . . . . . . . Leg . | . . . . . . . . . . Wheel 4 | . 2 . 1 . . . 1 . . Hover . | . . . . . . . . . . Flight . | . . . . . . . . . . Utility 3 | . . 1 . . 1 . 1 . . Device . | . . . . . . . . . . Storage . | . . . . . . . . . . Processor 1 | . . . . . 1 . . . . Hackware . | . . . . . . . . . . Protection 2 | . . 1 . . . . 1 . . Artifact . | . . . . . . . . . . Weapon 8 | . . 3 . 1 2 1 . 1 . Energy Gun 1 | . . 1 . . . . . . . Energy Cannon 1 | . . . . . 1 . . . . Ballistic Gun 2 | . . 1 . . 1 . . . . Ballistic Cannon 2 | . . 1 . . . 1 . . . Launcher . | . . . . . . . . . . Special Weapon . | . . . . . . . . . . Impact Weapon . | . . . . . . . . . . Slashing Weapon 2 | . . . . 1 . . . 1 . Piercing Weapon . | . . . . . . . . . . Special Melee Weapon . | . . . . . . . . . . Unidentified Prototypes 3 | . . . . . 3 . . . . Parts Lost 15 | . . 2 . 3 . . . 10 . Power 3 | . . . . 1 . . . 2 . Propulsion 4 | . . . . 1 . . . 3 . Utility 3 | . . . . . . . . 3 . Weapon 5 | . . 2 . 1 . . . 2 . Highest Loss Streak 9 | . . 2 . 2 . . . 9 . Average Slot Usage (%) 78 | . 85 94 88 87 71 67 76 58 19 Engine 5 | . 14 . . 4 11 11 9 7 7 Core 6 | . . 13 11 6 . . . . . Wheel 24 | . 16 28 33 33 22 22 24 17 . Storage 11 | . 14 14 11 11 11 11 9 7 . Protection 9 | . . 9 11 11 11 11 15 11 . Energy Gun 2 | . 28 4 . . . . . . 6 Energy Cannon 2 | . . . . . 4 11 9 6 . Ballistic Gun 6 | . . 13 11 6 . . . . . Ballistic Cannon 7 | . . 9 11 11 6 1 9 4 . Slashing Weapon 2 | . . . . 3 6 . . 4 . Naked Turns 5 | . . . . . . . . 5 . Heaviest Build 47 | 12 12 18 18 20 21 25 47 47 9 Greatest Support 48 | 20 32 32 42 42 32 32 48 48 18 Greatest Overweight (x) 1 | . . . . . . . . 1 1 Average Overweight (x) . | . . . . . . . . . . Largest Inventory Capacity 6 | . 6 6 6 6 6 6 6 6 4 Average Capacity 5 | . 6 6 6 6 6 6 6 5 4 Most Carried 6 | . 6 6 5 5 6 6 6 6 3 Average Carried 5 | . 5 5 5 4 4 6 5 5 3 Final Capacity 6 | 6 6 6 6 6 6 6 6 4 4 Final Carried 6 | 6 5 6 5 4 6 6 6 4 3 Class Distribution -------------------- 100% | Mutant Dominant Class ---------------- Mutant | -10/Materials Mutant | -10/Mines Mutant | -9/Materials Mutant | -9/Mines Mutant | -9/Exiles Mutant | -8/Mines Mutant | -8/Materials Mutant | -8/Garrison Mutant | -7/Factory Resources | -11 -10 -10 -9 -9 -9 -8 -8 -8 -7 ----------- Run | Scr Mat Min Mat Min Exi Min Mat Gar Fac Matter Collected 552 | 200 . 154 . 115 . 41 . 32 10 Remotely . | . . . . . . . . . . Salvage Created 724 | . . 251 . 125 . . . 348 . Parts 31 | . . 21 . 2 . . . 8 . Haulers Intercepted . | . . . . . . . . . . Recyclers Shooed . | . . . . . . . . . . Parts Field Recycled . | . . . . . . . . . . Retrieved Matter . | . . . . . . . . . . Parts Self-Destructed . | . . . . . . . . . . Prevented . | . . . . . . . . . . Kills | -11 -10 -10 -9 -9 -9 -8 -8 -8 -7 ------- Run | Scr Mat Min Mat Min Exi Min Mat Gar Fac Combat Hostiles Destroyed 23 | . . 10 . 2 . . . 11 . Melee 8 | . . . . . . . . 8 . Guns 5 | . . 5 . . . . . . . Cannons 7 | . . 5 . 2 . . . . . AOE 3 | . . . . . . . . 3 . Classes Destroyed 4 | . . 3 . . . . . 1 . Worker 1 | . . 1 . . . . . . . Swarmer 12 | . . 6 . . . . . 6 . Grunt 10 | . . 4 . 2 . . . 4 . Sentry 1 | . . . . . . . . 1 . Best Kill Streak 6 | . . 3 . 2 . . . 6 . Combat Bots Only 6 | . . 3 . 2 . . . 6 . Max Kills in Single Turn 2 | . . 2 . 1 . . . 1 . Gunslinging . | . . . . . . . . . . Exploded 1 | . . . . . . . . 1 . Melee 1 | . . . . . . . . 1 . Uniques/NPCs Destroyed . | . . . . . . . . . . Combat | -11 -10 -10 -9 -9 -9 -8 -8 -8 -7 -------- Run | Scr Mat Min Mat Min Exi Min Mat Gar Fac Damage Taken 2528 | . . 340 . 310 . . . 1878 . Core 687 | . . 94 . 61 . . . 532 . Absorbed by Shields . | . . . . . . . . . . Core Remaining (%) 62 | 100 . 62 . . . 84 . 3 . Volleys Fired 42 | . . 28 . 9 . . . 5 . Largest 2 | . . 2 . 2 . . . 2 . Hottest 99 | . . 85 . 64 . . . 99 . Shots Fired 77 | . . 53 . 15 . . . 9 . Gun 39 | . . 33 . 6 . . . . . Cannon 38 | . . 20 . 9 . . . 9 . Launcher . | . . . . . . . . . . Special . | . . . . . . . . . . Kinetic 64 | . . 45 . 15 . . . 4 . Thermal 5 | . . 5 . . . . . . . Explosive . | . . . . . . . . . . Electromagnetic 8 | . . 3 . . . . . 5 . Robot Hit Streak 11 | . . 11 . 8 . . . 1 . Robot Miss Streak 8 | . . 8 . 3 . . . 2 . Penetration Max . | . . . . . . . . . . Secondary Targets . | . . . . . . . . . . Shots Hit Robots 77 | . . 34 . 22 . . . 21 . Core Hits 52 | . . 21 . 16 . . . 15 . Critical Hits 2 | . . . . 1 . . . 1 . Critical Kills 2 | . . . . 1 . . . 1 . Critical Parts Destroyed . | . . . . . . . . . . Melee Attacks 42 | . . . . 10 . . . 32 . Impact . | . . . . . . . . . . Slashing 42 | . . . . 10 . . . 32 . Piercing . | . . . . . . . . . . Sneak Attacks . | . . . . . . . . . . Combat Hostiles . | . . . . . . . . . . Follow-up Attacks . | . . . . . . . . . . Damage Inflicted 2601 | . . 344 . 1197 . . . 1060 . Guns 248 | . . 206 . 42 . . . . . Cannons 322 | . . 138 . 166 . . . 18 . Explosions 345 | . . . . . . . . 345 . Melee 1675 | . . . . 989 . . . 686 . Ramming 11 | . . . . . . . . 11 . Kinetic 459 | . . 251 . 208 . . . . . Thermal 66 | . . 66 . . . . . . . Explosive . | . . . . . . . . . . Electromagnetic 390 | . . 27 . . . . . 363 . Impact . | . . . . . . . . . . Slashing 1675 | . . . . 989 . . . 686 . Piercing . | . . . . . . . . . . Highest Corruption 12 | . . . . . . . . 12 . Average Corruption 10 | . . . . . . . . 10 . Corruption Purged . | . . . . . . . . . . Effects 12 | . . . . . . . . 12 . Message Errors 2 | . . . . . . . . 2 . Matter Fused 3 | . . . . . . . . 3 . Energy Discharges 1 | . . . . . . . . 1 . Misdirections 1 | . . . . . . . . 1 . Targeting Errors 5 | . . . . . . . . 5 . Overload Shots . | . . . . . . . . . . Overflow Damage 125 | . . . . 86 . . . 39 . Projectiles . | . . . . . . . . . . Explosions 17 | . . . . . . . . 17 . Melee 108 | . . . . 86 . . . 22 . Knockbacks 12 | . . 9 . 3 . . . . . Impact . | . . . . . . . . . . Kinetic 11 | . . 8 . 3 . . . . . Secondary 1 | . . 1 . . . . . . . Self-Inflicted Damage 42 | . . . . . . . . 42 . Shots 1 | . . . . . . . . 1 . Rammed 4 | . . . . . . . . 4 . Targets Rammed 4 | . . . . . . . . 4 . Kicked . | . . . . . . . . . . Crushed . | . . . . . . . . . . Highest Temperature 141 | . . 111 . 129 . . . 141 . Average Temperature 56 | . . 50 . 70 . . . 61 . Received Heat Transfer 798 | . . 102 . 129 . . . 567 . Siege Activations . | . . . . . . . . . . Robots Corrupted . | . . . . . . . . . . Combat Hostiles . | . . . . . . . . . . Parts Fried . | . . . . . . . . . . Impact Corruptions . | . . . . . . . . . . Robots Melted . | . . . . . . . . . . Combat Hostiles . | . . . . . . . . . . Parts Melted . | . . . . . . . . . . Heat Transferred 137 | . . 137 . . . . . . . Parts Sabotaged . | . . . . . . . . . . Parts Stolen . | . . . . . . . . . . Parts Stripped . | . . . . . . . . . . Power Chain Reactions . | . . . . . . . . . . Missiles Intercepted . | . . . . . . . . . . Latent Energy Used 599 | . . . . . . . . 599 . LE Corruption 12 | . . . . . . . . 12 . Alert | -11 -10 -10 -9 -9 -9 -8 -8 -8 -7 ------- Run | Scr Mat Min Mat Min Exi Min Mat Gar Fac Peak Influence 292 | . 7 145 71 57 . . . 292 163 Average Influence 56 | . 6 42 63 39 . . . 135 153 Maximum Alert Level 1 | . . . . . . . . 1 . Low Security (%) 98 | . 100 100 100 100 . 100 100 89 100 Level 1 1 | . . . . . . . . 10 . Level 2 . | . . . . . . . . . . Level 3 . | . . . . . . . . . . Level 4 . | . . . . . . . . . . Level 5 . | . . . . . . . . . . High Security . | . . . . . . . . . . Max Security . | . . . . . . . . . . Squads Dispatched . | . . . . . . . . . . Investigation . | . . . . . . . . . . Extermination . | . . . . . . . . . . Reinforcement . | . . . . . . . . . . Assault . | . . . . . . . . . . Garrison . | . . . . . . . . . . Intercept . | . . . . . . . . . . Construction Impeded . | . . . . . . . . . . Haulers Reinforced . | . . . . . . . . . . Stealth | -11 -10 -10 -9 -9 -9 -8 -8 -8 -7 --------- Run | Scr Mat Min Mat Min Exi Min Mat Gar Fac Distress Signals . | . . . . . . . . . . Communications Jammed . | . . . . . . . . . . Distress Signals . | . . . . . . . . . . Times Spotted 48 | . . 12 . 9 . . . 27 . Peak Tracking Total 16 | . . 3 . 3 . . . 16 . Tactical Retreats 9 | . . 1 . 2 . . . 6 . Traps | -11 -10 -10 -9 -9 -9 -8 -8 -8 -7 ------- Run | Scr Mat Min Mat Min Exi Min Mat Gar Fac Traps Triggered 1 | . . . . . . . . 1 . Indirectly 1 | . . . . . . . . 1 . Trap Hack Attempts . | . . . . . . . . . . Triggered . | . . . . . . . . . . Disarmed . | . . . . . . . . . . Reprogrammed . | . . . . . . . . . . Reused . | . . . . . . . . . . Traps Extracted . | . . . . . . . . . . Installed . | . . . . . . . . . . Triggered . | . . . . . . . . . . Machines | -11 -10 -10 -9 -9 -9 -8 -8 -8 -7 ---------- Run | Scr Mat Min Mat Min Exi Min Mat Gar Fac Machines Disabled 2 | . . . . . . . . 2 . Max in Single Turn 2 | . . . . . . . . 2 . Garrison Relay 1 | . . . . . . . . 1 . Machines Sabotaged . | . . . . . . . . . . Garrisons Compromised . | . . . . . . . . . . Overloaded Fab Kills . | . . . . . . . . . . Fab Network Shutdowns . | . . . . . . . . . . Hacking | -11 -10 -10 -9 -9 -9 -8 -8 -8 -7 --------- Run | Scr Mat Min Mat Min Exi Min Mat Gar Fac Machines Accessed 5 | . 1 1 . . 1 . 1 . 1 Terminals 1 | . 1 . . . . . . . . Fabricators . | . . . . . . . . . . Repair Stations 1 | . . . . . . . . . 1 Recycling Units . | . . . . . . . . . . Scanalyzers . | . . . . . . . . . . Garrison Access 1 | . . . . . . . 1 . . Total Hacks 6 | . 1 1 . . 1 . 1 . 2 Successful 5 | . 1 1 . . 1 . 1 . 1 Failed 1 | . . . . . . . . . 1 Catastrophic . | . . . . . . . . . . Database Lockouts . | . . . . . . . . . . Manual 1 | . . . . . 1 . . . . Terminals 1 | . 1 . . . . . . . . Fabricators . | . . . . . . . . . . Repair Stations 2 | . . . . . . . . . 2 Recycling Units . | . . . . . . . . . . Scanalyzers . | . . . . . . . . . . Garrison Access 1 | . . . . . . . 1 . . Terminal Hacks 3 | . 1 1 . . 1 . . . . Record 1 | . . . . . 1 . . . . Open Door 1 | . . 1 . . . . . . . Branch Access Points 1 | . 1 . . . . . . . . Fabricator Hacks . | . . . . . . . . . . Repair Station Hacks 1 | . . . . . . . . . 1 Refit 1 | . . . . . . . . . 1 Recycling Unit Hacks . | . . . . . . . . . . Scanalyzer . | . . . . . . . . . . Garrison Access Hacks 1 | . . . . . . . 1 . . Unlock Access 1 | . . . . . . . 1 . . Unauthorized Hacks . | . . . . . . . . . . Terminals . | . . . . . . . . . . Fabricators . | . . . . . . . . . . Repair Stations . | . . . . . . . . . . Recycling Units . | . . . . . . . . . . Scanalyzers . | . . . . . . . . . . Garrison Access . | . . . . . . . . . . Data Cores Recovered . | . . . . . . . . . . Used . | . . . . . . . . . . Hacking Detections 1 | . . . . . . . . . 1 Full Trace Events . | . . . . . . . . . . Feedback Events . | . . . . . . . . . . Feedback Blocked . | . . . . . . . . . . Robot Schematics Acquired . | . . . . . . . . . . Robots Built . | . . . . . . . . . . Matter . | . . . . . . . . . . Time . | . . . . . . . . . . Total Robot Build Rating . | . . . . . . . . . . Part Schematics Acquired . | . . . . . . . . . . Parts Built . | . . . . . . . . . . Matter . | . . . . . . . . . . Time . | . . . . . . . . . . Total Part Build Rating . | . . . . . . . . . . Parts Repaired . | . . . . . . . . . . Time . | . . . . . . . . . . Parts Recycled . | . . . . . . . . . . Recycled Matter . | . . . . . . . . . . Retrieved Matter . | . . . . . . . . . . Retrieved Components . | . . . . . . . . . . Parts Scanalyzed . | . . . . . . . . . . Part Schematics Acquired . | . . . . . . . . . . Parts Damaged . | . . . . . . . . . . Bothacking | -11 -10 -10 -9 -9 -9 -8 -8 -8 -7 ------------ Run | Scr Mat Min Mat Min Exi Min Mat Gar Fac Used RIF Installer 1 | . . . . . . . . 1 . Robots Hacked . | . . . . . . . . . . Non-combat . | . . . . . . . . . . Combat . | . . . . . . . . . . Robot Hacks Applied . | . . . . . . . . . . Relay Couplers Released 4 | . . . . . . . . 4 . Machine Destruction 4 | . . . . . . . . 4 . Robots Rewired . | . . . . . . . . . . Allies Hacked . | . . . . . . . . . . Hacks Repelled . | . . . . . . . . . . Allies | -11 -10 -10 -9 -9 -9 -8 -8 -8 -7 -------- Run | Scr Mat Min Mat Min Exi Min Mat Gar Fac Total Allies . | . . . . . . . . . . Largest Group . | . . . . . . . . . . Highest-Rated Group . | . . . . . . . . . . Highest-Rated Ally . | . . . . . . . . . . Total Orders . | . . . . . . . . . . Ally Attacks . | . . . . . . . . . . Total Damage . | . . . . . . . . . . Kills . | . . . . . . . . . . Allies Corrupted . | . . . . . . . . . . Allies Melted . | . . . . . . . . . . Intel | -11 -10 -10 -9 -9 -9 -8 -8 -8 -7 ------- Run | Scr Mat Min Mat Min Exi Min Mat Gar Fac Robot Analysis Total . | . . . . . . . . . . Derelict Logs Recovered 1 | . . . . 1 . . . . . Drone Launches . | . . . . . . . . . . Drone Recoveries . | . . . . . . . . . . Exploration | -11 -10 -10 -9 -9 -9 -8 -8 -8 -7 ------------- Run | Scr Mat Min Mat Min Exi Min Mat Gar Fac Turns Passed 2018 | . 53 744 66 279 320 169 46 241 100 Spaces Moved 1731 | 1 44 617 70 236 311 168 39 133 112 Core 59 | . . . . . . . . 2 57 Treads . | . . . . . . . . . . Legs 23 | 1 22 . . . . . . . . Wheels 1594 | . 22 617 70 236 311 168 39 131 . Hover 55 | . . . . . . . . . 55 Flight . | . . . . . . . . . . Fastest Speed 50 | 120 100 100 93 93 100 100 100 50 76 Average Speed 98 | 120 110 100 93 93 100 100 100 99 88 Slowest Speed 120 | 120 120 100 93 100 100 100 100 110 100 Overloaded Moves . | . . . . . . . . . . Propulsion Burnouts . | . . . . . . . . . . Robots Hopped . | . . . . . . . . . . Cave-ins Triggered . | . . . . . . . . . . Exploration Rate (%) 32 | 2 17 72 12 58 61 45 6 42 6 Regions Visited 9 Branch Regions 4 Pre-discovered Areas . | . . . . . . . . . . Known Exits Taken 2 | . 1 . . . . . 1 . . Unknown Exits Taken 6 | 1 . 1 1 1 1 1 . . . Scrap Searched 3 | . . 2 . . . 1 . . . Spaces Dug 14 | . . . . 2 . . . 12 . Terrain Destroyed 26 | . . . . 2 . . . 24 . Melee 2 | . . . . 2 . . . . . Projectile . | . . . . . . . . . . AOE 24 | . . . . . . . . 24 . Actions | -11 -10 -10 -9 -9 -9 -8 -8 -8 -7 --------- Run | Scr Mat Min Mat Min Exi Min Mat Gar Fac Total 1899 | . 48 696 70 263 320 168 46 175 113 Wait 48 | . . 38 . 7 3 . . . . Move 1723 | . 43 616 69 235 310 167 39 132 112 Hop . | . . . . . . . . . . Pick Up 7 | . 1 4 . . . . 2 . . Fast Attach 10 | . . 4 . 1 3 1 1 . . Attach 6 | . . 1 1 1 . . 1 1 1 Detach 4 | . . 1 . . 3 . . . . Swap 4 | . 2 . . . . . 1 1 . Drop 9 | . 2 4 . . 1 . 2 . . Fire 42 | . . 28 . 9 . . . 5 . Melee 42 | . . . . 10 . . . 32 . Ram 4 | . . . . . . . . 4 . Kick . | . . . . . . . . . . Crush . | . . . . . . . . . . Escape Stasis . | . . . . . . . . . . Rewire . | . . . . . . . . . . Trap . | . . . . . . . . . . Miscellaneous . | . . . . . . . . . . Route ------- -11/Scrapyard -10/Materials (discovered 2 exits: *Min x2) -10/Mines -9/Materials -9/Mines -9/Exiles -8/Mines -8/Materials -8/Garrison -7/Factory History --------- Turn | Location | Event 1 | -11/Scrapyard | Discovered new exit (range 0) 1 | -11/Scrapyard | Entered Materials 6 | -10/Materials | Identified exit to Mines 54 | -10/Materials | Entered Mines 323 | -10/Mines | Build established: Mutant 781 | -10/Mines | Discovered new exit (range 7) 798 | -10/Mines | Entered Materials 798 | -9/Materials | Evolved 2 slots: Propulsion x1, Utility x1 855 | -9/Materials | Discovered new exit (range 8) 864 | -9/Materials | Entered Mines 919 | -9/Mines | Learned Materials garrison access intel 989 | -9/Mines | Assembled infested the area 1139 | -9/Mines | Discovered new exit (range 5) 1143 | -9/Mines | Entered Exiles 1167 | -9/Exiles | Met 8R-AWN 1184 | -9/Exiles | Met EX-HEX 1220 | -9/Exiles | Met EX-BIN 1282 | -9/Exiles | Aligned with FarCom system 1283 | -9/Exiles | Given EX-Vault access code 1313 | -9/Exiles | Opened EX-Vault 1324 | -9/Exiles | Found Prototype Ballistic Gun 1324 | -9/Exiles | Identified AWS/Gauss 1330 | -9/Exiles | Found Prototype Energy Cannon 1330 | -9/Exiles | Identified Latent Energy Streamer 1333 | -9/Exiles | Found Prototype Processor 1333 | -9/Exiles | Identified Modified TNC 1381 | -9/Exiles | Warned to stay clear of 0b10 Research branches 1413 | -9/Exiles | Met EX-DEC 1452 | -9/Exiles | Discovered new exit (range 10) 1463 | -9/Exiles | Left Exiles lab with Latent Energy Streamer 1463 | -9/Exiles | Entered Mines 1621 | -8/Mines | Discovered new exit (range 10) 1632 | -8/Mines | Entered Materials 1632 | -8/Materials | Evolved 2 slots: Propulsion x1, Utility x1 1633 | -8/Materials | Loaded intel: 1 garrison access location 1678 | -8/Materials | Identified exit to Garrison 1678 | -8/Materials | Entered Garrison 1729 | -8/Garrison | Triggered checkpoint 1760 | -8/Garrison | Triggered checkpoint 1760 | -8/Garrison | Triggered checkpoint 1764 | -8/Garrison | System corruption reached 10% 1768 | -8/Garrison | Triggered checkpoint 1814 | -8/Garrison | Discovered new exit (range 14) 1835 | -8/Garrison | Installed Relay Interface Framework 1866 | -8/Garrison | Core integrity fell below 50% 1900 | -8/Garrison | Lost 9 parts (2p3n3u1w) 1911 | -8/Garrison | Core integrity fell below 20% 1919 | -8/Garrison | Entered Factory 1919 | -7/Factory | Evolved 2 slots: Propulsion x1, Utility x1 2019 | -7/Factory | Self-destructed Last Messages --------------- 01915_ Slammed into G-47 Trooper. 01916_ Acquired 13 matter. 01916_ Slammed into S-10 Pest. 01917_ Slammed into G-47 Trooper. 01919_ Acquired 19 matter. 01919_ Attempting to access garrison exit controls... RIF authorized. PARAMETERS=PROPULSION_1,UTILITY_1 LOCATION=UNKNOWN GOAL=ESCAPE 01919_ Receiving FarCom transmissions... 01960_ K-01 Serf collects debris. 01969_ Acquired 10 matter. 01977_ Connecting with Repair Station... 01977_ Current location identified: Factory >>Refit Scanning configuration... Attaching: Backup Propulsion III x2 Backup Laser III x2 Map ----- +----------------------------------------------------+ | ?????????????????????????????????????????????????? | | ?????????????????????????????????????????????????? | | ?????????????????????????????????????????????????? | | ?????????????????????????????????????????????????? | | ????????????????????????????????????##########???? | | ????????????????????????????????????# ??? | | ????????????????????????????????????# """""""?? | | ????????????????????????????????????# | | ????????????????????????????????????# """"""""" | | ????????????????????????????????????# | | ?????????????????###############????# """"""""" | | ?????????????????# ###### | | ?????????????????# + """"""""" | | ?????????????????# ###### | | ?????????????????# ##+######+###??# | | ?????????????????# ???# #??######+#+##### | | ??????????????????????# #???????# ### | | ??????????????????????# #???????# # | | ??????????????????????# """ #???????# # | | ??????????????????????# """"" #???????# # " | | ??????????????????????# """"" #???????# # " | | ??????????????????????# #???????# # " | | ??????????????????????# """ ! ######### # | | ??????????????????????# """"" ## # | | ??????????????????????# """"" ## # | | ??????????????????????# @ ## # | | ??????????????????????# """ ## + " | | ??????????????????????# """"" ## # " | | ??????????????????????# """"" ## # " | | ??????????????????????# ## ### | | ??????????????????????############# | | ??????????????????????????????????# | | ??????????????????????????????????# | | ??????????????????????????????????# | | ??????????????????????????????????# | | ??????????????????????????????????# | | ??????????????????????????????????# | | ??????????????????????????????????# | | ??????????????????????????????????? | | ??????????????????????????????????? | | ???????????????????????????????????? | | ???????????????????????????????????? | | ????????????????????????????????????? #####+#### | | ????????????????????????????????????? ?????????? | | ?????????????????????????????????????????????????? | | ?????????????????????????????????????????????????? | | ?????????????????????????????????????????????????? | | ?????????????????????????????????????????????????? | | ?????????????????????????????????????????????????? | | ?????????????????????????????????????????????????? | +----------------------------------------------------+ Best States ------------- Heat Dissipation 34 Energy Generation 14 Energy Capacity 265 Matter Stores 300 Matter Capacity 300 Sight Range 16 Terrain Scan Density 10 Armor Coverage 600 Propulsion Shielding 66 Evasion (%) 50 Item Schematics ----------------- None Robot Schematics ------------------ None Fabricated ------------ Nothing Alien Tech Used ----------------- None Achievements -------------- None Challenges ------------ None Game ------ Seed BattleGyrokineticThrusters Manual? 0 Play Time 00:15:31 Cumulative 109.4 hours Start 2019.11.25 @ 09:24:55 End 2019.11.26 @ 12:42:20 Sessions 3 Manual Loads 0 Difficulty Rogue Special Mode None Game No. 191 Rogue 188 Adventurer 1 Explorer 2 Win Type - Total 4 Types 4/0/0/0/0/0/0 Lore% 64 Gallery% 63 Achievement% 53 Wizard Run 0 Options --------- ASCII 0 Keyboard 1 Movement Numpad Keybinds 0 Fullscreen 2 Font 12/Smallcaps Map View 83x54 Tactical HUD 1 Map Filters NONE Filters NONE Steam X RUN: 5330d77d-3a45-48ba-a6a4-d3015113cc74